[Event "Early-Titled-Tuesday-Blitz-January-30-2024"]
[Site "Chess.com"]
[Date "2024.01.30"]
[Round "2"]
[White "JoachimBN"]
[Black "Zohid6"]
[Result "1-0"]
[WhiteElo "2591"]
[BlackElo "2856"]
[TimeControl "180+1"]
[EndTime "8:20:32 PST"]
[Termination "JoachimBN won by resignation"]

1. d4 {[%clk 0:03:00.9]} 1... Nf6 {[%clk 0:02:59]} 2. c4 {[%clk 0:02:50.8]} 2...
e6 {[%clk 0:02:59.1]} 3. Nc3 {[%clk 0:02:49.2]} 3... Bb4 {[%clk 0:02:49.4]} 4.
f3 {[%clk 0:02:46.4]} 4... c5 {[%clk 0:02:47.2]} 5. d5 {[%clk 0:02:45.4]} 5...
O-O {[%clk 0:02:26.2]} 6. e4 {[%clk 0:02:39.8]} 6... b5 {[%clk 0:02:26]} 7. Nh3
{[%clk 0:01:56.9]} 7... d6 {[%clk 0:02:11.6]} 8. Nf2 {[%clk 0:01:55]} 8... Re8
{[%clk 0:02:05.2]} 9. Bg5 {[%clk 0:01:29.6]} 9... h6 {[%clk 0:02:03.7]} 10. Bd2
{[%clk 0:01:26.9]} 10... Nbd7 {[%clk 0:01:39.1]} 11. dxe6 {[%clk 0:01:25.7]}
11... Rxe6 {[%clk 0:01:40]} 12. cxb5 {[%clk 0:01:19.4]} 12... d5 {[%clk
0:01:39.3]} 13. Be2 {[%clk 0:01:16.9]} 13... d4 {[%clk 0:01:32.2]} 14. Na4
{[%clk 0:01:00.7]} 14... Qa5 {[%clk 0:01:31.8]} 15. b3 {[%clk 0:00:55]} 15... a6
{[%clk 0:01:28.6]} 16. bxa6 {[%clk 0:00:51]} 16... Bxa6 {[%clk 0:01:24.9]} 17.
Bxa6 {[%clk 0:00:51.3]} 17... Rexa6 {[%clk 0:01:24.3]} 18. Bxb4 {[%clk
0:00:42.5]} 18... Qxb4+ {[%clk 0:01:25.2]} 19. Qd2 {[%clk 0:00:42.8]} 19... Qb5
{[%clk 0:01:25.7]} 20. Rc1 {[%clk 0:00:36.3]} 20... Re8 {[%clk 0:01:07.4]} 21.
Qd3 {[%clk 0:00:27.8]} 21... Qb4+ {[%clk 0:01:07.1]} 22. Qd2 {[%clk 0:00:27.4]}
22... Qb5 {[%clk 0:01:07.5]} 23. Qd3 {[%clk 0:00:27.6]} 23... Qb7 {[%clk
0:00:40.8]} 24. O-O {[%clk 0:00:25.3]} 24... Ra5 {[%clk 0:00:39.1]} 25. Qd2
{[%clk 0:00:22.4]} 25... Rb5 {[%clk 0:00:39]} 26. Nd3 {[%clk 0:00:22.6]} 26...
Rc8 {[%clk 0:00:36.6]} 27. Ndb2 {[%clk 0:00:20.1]} 27... Rb4 {[%clk 0:00:35.5]}
28. Nc4 {[%clk 0:00:19.8]} 28... Qa6 {[%clk 0:00:36]} 29. Rc2 {[%clk 0:00:18.7]}
29... Ra8 {[%clk 0:00:34.7]} 30. Rfc1 {[%clk 0:00:18.7]} 30... Qe6 {[%clk
0:00:33.2]} 31. Ncb2 {[%clk 0:00:18.8]} 31... Rbb8 {[%clk 0:00:31.1]} 32. Nd3
{[%clk 0:00:19.2]} 32... Qe8 {[%clk 0:00:21.9]} 33. Ndxc5 {[%clk 0:00:18.9]}
33... Ne5 {[%clk 0:00:22.1]} 34. Qxd4 {[%clk 0:00:18.5]} 34... Rd8 {[%clk
0:00:22.6]} 35. Qf2 {[%clk 0:00:18.3]} 35... Rab8 {[%clk 0:00:21.7]} 36. Rd2
{[%clk 0:00:18.5]} 36... Rxd2 {[%clk 0:00:20.4]} 37. Qxd2 {[%clk 0:00:19.4]}
37... Rd8 {[%clk 0:00:20.9]} 38. Qe2 {[%clk 0:00:20.1]} 38... Qe7 {[%clk
0:00:21.1]} 39. Rd1 {[%clk 0:00:20.2]} 39... Rc8 {[%clk 0:00:20.6]} 40. Qf2
{[%clk 0:00:19.5]} 40... Qa7 {[%clk 0:00:18]} 41. Nd3 {[%clk 0:00:18.7]} 41...
Qd7 {[%clk 0:00:16.2]} 42. Ndb2 {[%clk 0:00:17.5]} 42... Qe7 {[%clk 0:00:16.2]}
43. Nd3 {[%clk 0:00:17.6]} 43... Qd7 {[%clk 0:00:15.7]} 44. Ndb2 {[%clk
0:00:14.6]} 44... Qe7 {[%clk 0:00:15.7]} 45. h3 {[%clk 0:00:14]} 45... Nh5
{[%clk 0:00:14.1]} 46. Nb6 {[%clk 0:00:13.2]} 46... Rb8 {[%clk 0:00:10.6]} 47.
Nd5 {[%clk 0:00:13.6]} 47... Qg5 {[%clk 0:00:10.7]} 48. f4 {[%clk 0:00:13.4]}
48... Qd8 {[%clk 0:00:04.2]} 49. fxe5 {[%clk 0:00:13.3]} 49... Qe8 {[%clk
0:00:04.7]} 50. Nc4 {[%clk 0:00:13.2]} 50... Qe6 {[%clk 0:00:02.7]} 51. g4
{[%clk 0:00:13.3]} 51... Qg6 {[%clk 0:00:03.2]} 52. Qg2 {[%clk 0:00:12]} 52...
Rb7 {[%clk 0:00:01.4]} 53. gxh5 {[%clk 0:00:11.6]} 53... Qe6 {[%clk 0:00:01.8]}
54. Rf1 {[%clk 0:00:11.6]} 54... Ra7 {[%clk 0:00:01.8]} 55. Nd6 {[%clk
0:00:11.2]} 55... Kh8 {[%clk 0:00:02.7]} 56. Nxf7+ {[%clk 0:00:11.1]} 56... Rxf7
{[%clk 0:00:03.6]} 57. Rxf7 {[%clk 0:00:11.4]} 57... Qxf7 {[%clk 0:00:04.5]} 58.
Qg4 {[%clk 0:00:11.7]} 58... Qa7+ {[%clk 0:00:04.3]} 59. Kg2 {[%clk 0:00:11.1]}
59... Qxa2+ {[%clk 0:00:05]} 60. Kg3 {[%clk 0:00:11.1]} 60... Qxb3+ {[%clk
0:00:05.7]} 61. Qf3 {[%clk 0:00:11.7]} 61... Qb2 {[%clk 0:00:05.1]} 62. Qf8+
{[%clk 0:00:12.2]} 62... Kh7 {[%clk 0:00:05.7]} 63. Qf5+ {[%clk 0:00:13]} 63...
Kh8 {[%clk 0:00:05.9]} 64. e6 {[%clk 0:00:13.6]} 64... Qb3+ {[%clk 0:00:05.3]}
65. Kf4 {[%clk 0:00:13.9]} 65... Qb8+ {[%clk 0:00:05.2]} 66. Qe5 {[%clk
0:00:13.5]} 66... Qf8+ {[%clk 0:00:05.2]} 67. Kg4 {[%clk 0:00:14.1]} 67... Qf2
{[%clk 0:00:03.7]} 68. e7 {[%clk 0:00:14.1]} 68... Qe2+ {[%clk 0:00:03.1]} 69.
Kf5 {[%clk 0:00:14.6]} 69... Qxh5+ {[%clk 0:00:03.5]} 70. Ke6 {[%clk 0:00:15.2]}
70... Qe8 {[%clk 0:00:03.9]} 71. Kd6 {[%clk 0:00:15.1]} 71... Qb8+ {[%clk
0:00:03.9]} 72. Nc7 {[%clk 0:00:15.4]} 72... Qb6+ {[%clk 0:00:02.2]} 73. Kd7
{[%clk 0:00:15.8]} 73... Qb2 {[%clk 0:00:01.9]} 74. e8=Q+ {[%clk 0:00:15.8]}
74... Kh7 {[%clk 0:00:02.8]} 75. Qf5+ {[%clk 0:00:16.1]} 1-0

[Event "Early-Titled-Tuesday-Blitz-January-30-2024"]
[Site "Chess.com"]
[Date "2024.01.30"]
[Round "2"]
[White "Juicy_Fork"]
[Black "the_chess_child"]
[Result "1/2-1/2"]
[WhiteElo "2440"]
[BlackElo "2879"]
[TimeControl "180+1"]
[EndTime "8:20:35 PST"]
[Termination "Game drawn by stalemate"]

1. e4 {[%clk 0:02:58]} 1... c5 {[%clk 0:02:59.2]} 2. Nf3 {[%clk 0:02:57.2]} 2...
e6 {[%clk 0:02:57.8]} 3. d4 {[%clk 0:02:55.5]} 3... cxd4 {[%clk 0:02:58.7]} 4.
Nxd4 {[%clk 0:02:56.4]} 4... Nf6 {[%clk 0:02:58.8]} 5. Nc3 {[%clk 0:02:56.9]}
5... Nc6 {[%clk 0:02:59.4]} 6. a3 {[%clk 0:02:55.1]} 6... Be7 {[%clk 0:02:55.5]}
7. Be3 {[%clk 0:02:49.6]} 7... O-O {[%clk 0:02:54.7]} 8. f4 {[%clk 0:02:42.8]}
8... e5 {[%clk 0:02:13.9]} 9. Nf5 {[%clk 0:02:19.3]} 9... exf4 {[%clk
0:02:10.8]} 10. Bxf4 {[%clk 0:02:19.3]} 10... d5 {[%clk 0:01:55.8]} 11. Nxd5
{[%clk 0:01:50.6]} 11... Bxf5 {[%clk 0:01:18.1]} 12. Nxf6+ {[%clk 0:01:38.7]}
12... Bxf6 {[%clk 0:01:17.9]} 13. Qxd8 {[%clk 0:01:24.2]} 13... Raxd8 {[%clk
0:01:18.8]} 14. exf5 {[%clk 0:01:24.5]} 14... Bxb2 {[%clk 0:01:15.8]} 15. Rb1
{[%clk 0:01:24.5]} 15... Bd4 {[%clk 0:01:01.4]} 16. Bd3 {[%clk 0:01:18.7]} 16...
Rfe8+ {[%clk 0:01:01]} 17. Kd2 {[%clk 0:01:14.5]} 17... Bb6 {[%clk 0:00:51.8]}
18. Rhe1 {[%clk 0:01:07]} 18... Ba5+ {[%clk 0:00:49.5]} 19. c3 {[%clk
0:01:07.2]} 19... Rxe1 {[%clk 0:00:40.2]} 20. Rxe1 {[%clk 0:01:08.1]} 20... Nd4
{[%clk 0:00:36.1]} 21. Re5 {[%clk 0:00:42.8]} 21... Nc6 {[%clk 0:00:20.3]} 22.
Re3 {[%clk 0:00:42]} 22... Kf8 {[%clk 0:00:19.7]} 23. Kc2 {[%clk 0:00:40.7]}
23... Rc8 {[%clk 0:00:20]} 24. Kb2 {[%clk 0:00:37]} 24... Bc7 {[%clk 0:00:19.7]}
25. Bxc7 {[%clk 0:00:25.2]} 25... Rxc7 {[%clk 0:00:20.6]} 26. Rh3 {[%clk
0:00:25.6]} 26... Ne5 {[%clk 0:00:18.9]} 27. Be2 {[%clk 0:00:19]} 27... Kg8
{[%clk 0:00:16.2]} 28. Kc2 {[%clk 0:00:12.5]} 28... g6 {[%clk 0:00:15.5]} 29.
fxg6 {[%clk 0:00:09.5]} 29... hxg6 {[%clk 0:00:16.4]} 30. Re3 {[%clk 0:00:09.4]}
30... f6 {[%clk 0:00:16.9]} 31. g4 {[%clk 0:00:08.7]} 31... g5 {[%clk
0:00:16.8]} 32. h4 {[%clk 0:00:09.1]} 32... gxh4 {[%clk 0:00:16.6]} 33. g5
{[%clk 0:00:09.5]} 33... Kf7 {[%clk 0:00:16.3]} 34. Bh5+ {[%clk 0:00:08.4]}
34... Ke6 {[%clk 0:00:16.1]} 35. Bg4+ {[%clk 0:00:05.9]} 35... Kf7 {[%clk
0:00:16.5]} 36. Bh5+ {[%clk 0:00:06]} 36... Kg7 {[%clk 0:00:17.2]} 37. gxf6+
{[%clk 0:00:03.6]} 37... Kxf6 {[%clk 0:00:18.1]} 38. Be2 {[%clk 0:00:02.4]}
38... Rh7 {[%clk 0:00:17.6]} 39. Rh3 {[%clk 0:00:02]} 39... Ng6 {[%clk
0:00:17.9]} 40. Rh2 {[%clk 0:00:01.7]} 40... Nf4 {[%clk 0:00:17.8]} 41. Bf3
{[%clk 0:00:02.2]} 41... Kg5 {[%clk 0:00:17.9]} 42. c4 {[%clk 0:00:02.5]} 42...
h3 {[%clk 0:00:18.5]} 43. Kc3 {[%clk 0:00:03.1]} 43... Kh4 {[%clk 0:00:19.1]}
44. Rh1 {[%clk 0:00:02.9]} 44... Kg3 {[%clk 0:00:19.6]} 45. Be4 {[%clk
0:00:03.3]} 45... Re7 {[%clk 0:00:20]} 46. Kd4 {[%clk 0:00:03.5]} 46... h2
{[%clk 0:00:20.5]} 47. c5 {[%clk 0:00:03]} 47... Nh3 {[%clk 0:00:20.7]} 48. Re1
{[%clk 0:00:01.7]} 48... Nf2 {[%clk 0:00:20.5]} 49. Re3+ {[%clk 0:00:01.7]}
49... Kg4 {[%clk 0:00:18.6]} 50. Bf3+ {[%clk 0:00:01.7]} 50... Kf4 {[%clk
0:00:18.8]} 51. Rxe7 {[%clk 0:00:02.6]} 51... Kxf3 {[%clk 0:00:19.4]} 52. Rh7
{[%clk 0:00:03]} 52... h1=Q {[%clk 0:00:18.9]} 53. Rxh1 {[%clk 0:00:03.7]} 53...
Nxh1 {[%clk 0:00:19.2]} 54. c6 {[%clk 0:00:03.7]} 54... bxc6 {[%clk 0:00:18.9]}
55. Kc5 {[%clk 0:00:04.4]} 55... Ke4 {[%clk 0:00:19.2]} 56. Kxc6 {[%clk
0:00:05.3]} 56... Kd4 {[%clk 0:00:18.9]} 57. Kb7 {[%clk 0:00:04.4]} 57... a5
{[%clk 0:00:18.7]} 58. Kb6 {[%clk 0:00:04.9]} 58... a4 {[%clk 0:00:19.3]} 59.
Kb5 {[%clk 0:00:05.4]} 59... Kc3 {[%clk 0:00:19.7]} 60. Kxa4 {[%clk 0:00:06.3]}
60... Kc4 {[%clk 0:00:20.1]} 61. Ka5 {[%clk 0:00:06.7]} 61... Kc5 {[%clk
0:00:20.7]} 62. a4 {[%clk 0:00:07.6]} 62... Kc6 {[%clk 0:00:21.2]} 63. Ka6
{[%clk 0:00:08.5]} 63... Ng3 {[%clk 0:00:21.1]} 64. a5 {[%clk 0:00:09.4]} 64...
Ne4 {[%clk 0:00:21.8]} 65. Ka7 {[%clk 0:00:10.3]} 65... Kc7 {[%clk 0:00:22.4]}
66. Ka6 {[%clk 0:00:10.9]} 66... Nc3 {[%clk 0:00:22.7]} 67. Ka7 {[%clk
0:00:10.6]} 67... Nd5 {[%clk 0:00:22]} 68. Ka6 {[%clk 0:00:10.5]} 68... Kc6
{[%clk 0:00:22.6]} 69. Ka7 {[%clk 0:00:11.1]} 69... Kc7 {[%clk 0:00:22.2]} 70.
Ka6 {[%clk 0:00:11.5]} 70... Nc3 {[%clk 0:00:21.7]} 71. Ka7 {[%clk 0:00:12.2]}
71... Ne4 {[%clk 0:00:21.6]} 72. Ka6 {[%clk 0:00:11.6]} 72... Nd6 {[%clk
0:00:22.3]} 73. Ka7 {[%clk 0:00:11.6]} 73... Kc6 {[%clk 0:00:21.5]} 74. Ka6
{[%clk 0:00:12.2]} 74... Nb7 {[%clk 0:00:20.3]} 75. Ka7 {[%clk 0:00:11.3]} 75...
Kc7 {[%clk 0:00:20.8]} 76. Ka6 {[%clk 0:00:10.2]} 76... Nd6 {[%clk 0:00:21.1]}
77. Ka7 {[%clk 0:00:10.4]} 77... Kc6 {[%clk 0:00:21.7]} 78. Ka6 {[%clk
0:00:10.8]} 78... Nc8 {[%clk 0:00:21.4]} 1/2-1/2

[Event "Early-Titled-Tuesday-Blitz-January-30-2024"]
[Site "Chess.com"]
[Date "2024.01.30"]
[Round "2"]
[White "SantoBlue"]
[Black "Sadykov_Ramil"]
[Result "1-0"]
[WhiteElo "2961"]
[BlackElo "2612"]
[TimeControl "180+1"]
[EndTime "8:20:36 PST"]
[Termination "SantoBlue won on time"]

1. e4 {[%clk 0:03:00.9]} 1... e5 {[%clk 0:02:59.7]} 2. Nc3 {[%clk 0:02:58.1]}
2... Nc6 {[%clk 0:02:59.3]} 3. Bc4 {[%clk 0:02:56.7]} 3... Bc5 {[%clk
0:02:51.3]} 4. d3 {[%clk 0:02:41.4]} 4... d6 {[%clk 0:02:49]} 5. Nf3 {[%clk
0:02:31.8]} 5... Na5 {[%clk 0:02:37.1]} 6. a4 {[%clk 0:02:27.6]} 6... Nxc4
{[%clk 0:02:36.5]} 7. dxc4 {[%clk 0:02:28.5]} 7... Nf6 {[%clk 0:02:31.8]} 8. h3
{[%clk 0:02:28.7]} 8... h6 {[%clk 0:02:30.8]} 9. Qd3 {[%clk 0:02:29.2]} 9... Be6
{[%clk 0:02:28.8]} 10. b3 {[%clk 0:02:23]} 10... a5 {[%clk 0:02:28.5]} 11. Be3
{[%clk 0:02:20.8]} 11... Nd7 {[%clk 0:02:08.2]} 12. g4 {[%clk 0:02:17.1]} 12...
Bxe3 {[%clk 0:02:00.9]} 13. Qxe3 {[%clk 0:02:17]} 13... f6 {[%clk 0:01:59.9]}
14. O-O-O {[%clk 0:02:17]} 14... Nc5 {[%clk 0:01:53.4]} 15. Nh4 {[%clk
0:02:13.8]} 15... Qd7 {[%clk 0:01:43.4]} 16. Ng6 {[%clk 0:02:00.4]} 16... Rg8
{[%clk 0:01:42.6]} 17. f4 {[%clk 0:01:44.6]} 17... exf4 {[%clk 0:01:40.3]} 18.
Nxf4 {[%clk 0:01:43.3]} 18... O-O-O {[%clk 0:01:37.1]} 19. Ncd5 {[%clk
0:01:43.8]} 19... Rge8 {[%clk 0:01:33.1]} 20. Qc3 {[%clk 0:01:34.6]} 20... b6
{[%clk 0:01:29.3]} 21. Rhe1 {[%clk 0:01:34.6]} 21... Bg8 {[%clk 0:01:22.1]} 22.
Qf3 {[%clk 0:01:25.4]} 22... Kb8 {[%clk 0:01:13.8]} 23. Nd3 {[%clk 0:01:24.2]}
23... Qc6 {[%clk 0:01:07.8]} 24. Nxc5 {[%clk 0:01:19.9]} 24... Qxc5 {[%clk
0:01:06.1]} 25. Kb2 {[%clk 0:01:18.4]} 25... Re5 {[%clk 0:01:05.7]} 26. Nf4
{[%clk 0:01:16.9]} 26... Re7 {[%clk 0:00:56.5]} 27. Nd5 {[%clk 0:01:12.5]} 27...
Re5 {[%clk 0:00:53.6]} 28. Nf4 {[%clk 0:01:11.6]} 28... Re7 {[%clk 0:00:53.7]}
29. e5 {[%clk 0:00:58.5]} 29... Bh7 {[%clk 0:00:11.4]} 30. Rd5 {[%clk
0:00:42.5]} 30... Qc6 {[%clk 0:00:07.9]} 31. e6 {[%clk 0:00:38.7]} 31... Rde8
{[%clk 0:00:06.7]} 32. Ne2 {[%clk 0:00:37.3]} 32... Bg8 {[%clk 0:00:03]} 33. Nd4
{[%clk 0:00:37.7]} 33... Qb7 {[%clk 0:00:03.5]} 34. Nf5 {[%clk 0:00:36.3]} 34...
Rxe6 {[%clk 0:00:03.6]} 35. Red1 {[%clk 0:00:20.2]} 35... Re5 {[%clk 0:00:03.8]}
36. Rxe5 {[%clk 0:00:17.6]} 36... Rxe5 {[%clk 0:00:04.7]} 37. Qxb7+ {[%clk
0:00:16.7]} 37... Kxb7 {[%clk 0:00:05.6]} 38. Nxg7 {[%clk 0:00:17.4]} 38... Re3
{[%clk 0:00:05.4]} 39. Rd3 {[%clk 0:00:17.1]} 39... Re2 {[%clk 0:00:03.6]} 40.
Nh5 {[%clk 0:00:16.6]} 40... Bh7 {[%clk 0:00:03.9]} 41. Rc3 {[%clk 0:00:17.2]}
41... f5 {[%clk 0:00:04.4]} 42. Ng3 {[%clk 0:00:15.8]} 42... Rf2 {[%clk
0:00:04.1]} 43. gxf5 {[%clk 0:00:16.5]} 43... Bxf5 {[%clk 0:00:04.7]} 44. h4
{[%clk 0:00:17.1]} 44... Bg6 {[%clk 0:00:04.5]} 45. h5 {[%clk 0:00:17.4]} 45...
Bf7 {[%clk 0:00:04]} 46. Re3 {[%clk 0:00:16.4]} 46... Rh2 {[%clk 0:00:04.2]} 47.
Kc3 {[%clk 0:00:16.7]} 47... Bxh5 {[%clk 0:00:04.4]} 48. Re7 {[%clk 0:00:15.6]}
48... Kc6 {[%clk 0:00:03.7]} 49. Nf5 {[%clk 0:00:14.8]} 49... Bg6 {[%clk
0:00:02.8]} 50. Nd4+ {[%clk 0:00:15.4]} 50... Kb7 {[%clk 0:00:03.2]} 51. Nb5
{[%clk 0:00:16.2]} 51... Rxc2+ {[%clk 0:00:03.2]} 52. Kd4 {[%clk 0:00:17]} 52...
Rd2+ {[%clk 0:00:03.1]} 53. Ke3 {[%clk 0:00:17.6]} 53... Rd3+ {[%clk 0:00:03.1]}
54. Ke2 {[%clk 0:00:18.3]} 54... Rxb3 {[%clk 0:00:03.2]} 55. Rxc7+ {[%clk
0:00:19]} 55... Kb8 {[%clk 0:00:03.7]} 56. Rg7 {[%clk 0:00:19.7]} 56... Be4
{[%clk 0:00:03.4]} 57. Rg8+ {[%clk 0:00:19.5]} 57... Kb7 {[%clk 0:00:02.4]} 58.
Nxd6+ {[%clk 0:00:20.1]} 58... Kc6 {[%clk 0:00:02.8]} 59. Nxe4 {[%clk
0:00:20.8]} 59... Ra3 {[%clk 0:00:03.3]} 60. Rg6+ {[%clk 0:00:21.4]} 60... Kc7
{[%clk 0:00:03.4]} 61. c5 {[%clk 0:00:19.4]} 61... bxc5 {[%clk 0:00:01.7]} 62.
Nxc5 {[%clk 0:00:20.3]} 62... Rc3 {[%clk 0:00:02.1]} 63. Ne6+ {[%clk 0:00:18.1]}
63... Kc8 {[%clk 0:00:01.6]} 64. Kd2 {[%clk 0:00:17.8]} 64... Rc4 {[%clk
0:00:01.8]} 65. Kd3 {[%clk 0:00:17.8]} 65... Rxa4 {[%clk 0:00:01.9]} 66. Nd4
{[%clk 0:00:18.7]} 66... Rb4 {[%clk 0:00:02]} 67. Ke4 {[%clk 0:00:19.3]} 67...
a4 {[%clk 0:00:02]} 68. Kd5 {[%clk 0:00:18]} 68... Kb7 {[%clk 0:00:01.7]} 69.
Kc5 {[%clk 0:00:15.5]} 69... Rb1 {[%clk 0:00:01.4]} 70. Rg7+ {[%clk 0:00:16.2]}
70... Ka6 {[%clk 0:00:01.4]} 71. Rg6+ {[%clk 0:00:13.1]} 71... Ka5 {[%clk
0:00:01.5]} 72. Nc6+ {[%clk 0:00:12.9]} 72... Ka6 {[%clk 0:00:02]} 73. Nb4+
{[%clk 0:00:13.5]} 73... Kb7 {[%clk 0:00:02.3]} 74. Rg7+ {[%clk 0:00:14.3]}
74... Kc8 {[%clk 0:00:01.6]} 75. Nd5 {[%clk 0:00:15.1]} 75... Kb8 {[%clk
0:00:01.9]} 76. Nb6 {[%clk 0:00:14.3]} 1-0

[Event "Early-Titled-Tuesday-Blitz-January-30-2024"]
[Site "Chess.com"]
[Date "2024.01.30"]
[Round "2"]
[White "Yeritsyaan"]
[Black "Rud_Makarian"]
[Result "0-1"]
[WhiteElo "2624"]
[BlackElo "3021"]
[TimeControl "180+1"]
[EndTime "8:20:37 PST"]
[Termination "Rud_Makarian won by resignation"]

1. c4 {[%clk 0:03:00.9]} 1... e6 {[%clk 0:02:59.7]} 2. d4 {[%clk 0:02:59.6]}
2... d5 {[%clk 0:03:00.6]} 3. Nf3 {[%clk 0:02:59.8]} 3... Nf6 {[%clk 0:03:01.1]}
4. Nbd2 {[%clk 0:03:00.2]} 4... b6 {[%clk 0:02:50.8]} 5. e3 {[%clk 0:02:58.1]}
5... Bb7 {[%clk 0:02:50.8]} 6. Bd3 {[%clk 0:02:57.6]} 6... Nbd7 {[%clk
0:02:49.8]} 7. O-O {[%clk 0:02:58.1]} 7... Bd6 {[%clk 0:02:49.1]} 8. Qe2 {[%clk
0:02:57.1]} 8... c5 {[%clk 0:02:49]} 9. e4 {[%clk 0:02:53.2]} 9... dxe4 {[%clk
0:02:44.8]} 10. Nxe4 {[%clk 0:02:54.1]} 10... Nxe4 {[%clk 0:02:45.3]} 11. Bxe4
{[%clk 0:02:55]} 11... Bxe4 {[%clk 0:02:45.5]} 12. Qxe4 {[%clk 0:02:55.9]} 12...
O-O {[%clk 0:02:45.1]} 13. Bg5 {[%clk 0:02:52.8]} 13... Be7 {[%clk 0:02:43.2]}
14. Bxe7 {[%clk 0:02:48.3]} 14... Qxe7 {[%clk 0:02:44.1]} 15. Rfe1 {[%clk
0:02:47.6]} 15... cxd4 {[%clk 0:02:32.9]} 16. Nxd4 {[%clk 0:02:48.5]} 16... Nf6
{[%clk 0:02:30.8]} 17. Qe3 {[%clk 0:02:45.9]} 17... Rac8 {[%clk 0:02:28.1]} 18.
b3 {[%clk 0:02:45.9]} 18... Rfd8 {[%clk 0:02:27.3]} 19. Rad1 {[%clk 0:02:45.3]}
19... h6 {[%clk 0:02:26]} 20. h3 {[%clk 0:02:40.1]} 20... Rd7 {[%clk 0:02:18.3]}
21. Rd2 {[%clk 0:02:32.5]} 21... Qc5 {[%clk 0:02:06.8]} 22. Red1 {[%clk
0:02:29.9]} 22... Rcd8 {[%clk 0:01:57.7]} 23. Nf3 {[%clk 0:01:24.1]} 23... Qxe3
{[%clk 0:01:52.8]} 24. fxe3 {[%clk 0:01:25]} 24... Rxd2 {[%clk 0:01:52]} 25.
Rxd2 {[%clk 0:01:25.9]} 25... Rc8 {[%clk 0:01:52.3]} 26. Rd4 {[%clk 0:01:23.1]}
26... Kf8 {[%clk 0:01:50.9]} 27. Kf2 {[%clk 0:01:22.7]} 27... Ke7 {[%clk
0:01:50.1]} 28. Ke2 {[%clk 0:01:21.7]} 28... g5 {[%clk 0:01:49.3]} 29. g4 {[%clk
0:01:20.7]} 29... Nd7 {[%clk 0:01:47.4]} 30. Rd1 {[%clk 0:01:14.3]} 30... a6
{[%clk 0:01:34.8]} 31. Nd4 {[%clk 0:01:13.6]} 31... Nc5 {[%clk 0:01:30.8]} 32.
Kf3 {[%clk 0:01:09.7]} 32... Nd7 {[%clk 0:01:25.8]} 33. Ke2 {[%clk 0:00:59.7]}
33... Nf6 {[%clk 0:01:18.7]} 34. Kf3 {[%clk 0:00:58]} 34... Rc5 {[%clk 0:01:13]}
35. a4 {[%clk 0:00:47.3]} 35... Nd7 {[%clk 0:01:10.9]} 36. Ke2 {[%clk
0:00:46.4]} 36... Ne5 {[%clk 0:01:10.8]} 37. Nf3 {[%clk 0:00:41.9]} 37... Nc6
{[%clk 0:01:02.6]} 38. Kd3 {[%clk 0:00:30.7]} 38... f5 {[%clk 0:00:45]} 39. Kc3
{[%clk 0:00:20.9]} 39... a5 {[%clk 0:00:44]} 40. Nd4 {[%clk 0:00:19.4]} 40...
Kf6 {[%clk 0:00:38.3]} 41. Nxc6 {[%clk 0:00:18.5]} 41... Rxc6 {[%clk 0:00:39.2]}
42. Rd8 {[%clk 0:00:18.6]} 42... Ke5 {[%clk 0:00:36.2]} 43. Rh8 {[%clk
0:00:16.9]} 43... f4 {[%clk 0:00:26.4]} 44. Kd3 {[%clk 0:00:14.1]} 44... Rd6+
{[%clk 0:00:23.2]} 45. Ke2 {[%clk 0:00:14.2]} 45... Ke4 {[%clk 0:00:23.8]} 46.
exf4 {[%clk 0:00:13.7]} 46... gxf4 {[%clk 0:00:24.6]} 47. Rxh6 {[%clk 0:00:11]}
47... f3+ {[%clk 0:00:24.9]} 48. Ke1 {[%clk 0:00:11]} 48... Ke3 {[%clk
0:00:23.8]} 49. Rf6 {[%clk 0:00:08.7]} 49... Rd3 {[%clk 0:00:09.7]} 50. Rxe6+
{[%clk 0:00:08.3]} 50... Kf4 {[%clk 0:00:10.3]} 51. g5 {[%clk 0:00:04.2]} 51...
Kg3 {[%clk 0:00:04]} 52. Rf6 {[%clk 0:00:02.5]} 52... Re3+ {[%clk 0:00:03.6]}
53. Kf1 {[%clk 0:00:01.9]} 53... Rxb3 {[%clk 0:00:03.9]} 54. Ke1 {[%clk
0:00:02.2]} 54... Rb1+ {[%clk 0:00:04.2]} 55. Kd2 {[%clk 0:00:02.2]} 55... f2
{[%clk 0:00:04.8]} 56. g6 {[%clk 0:00:02]} 56... Rb2+ {[%clk 0:00:04]} 57. Ke3
{[%clk 0:00:02.2]} 57... Rb3+ {[%clk 0:00:04.3]} 58. Ke2 {[%clk 0:00:02.9]}
58... Rb2+ {[%clk 0:00:04.8]} 59. Ke3 {[%clk 0:00:03.5]} 59... Rb3+ {[%clk
0:00:05.3]} 60. Ke4 {[%clk 0:00:03.9]} 60... Kg2 {[%clk 0:00:04.2]} 61. Rxf2+
{[%clk 0:00:02.7]} 61... Kxf2 {[%clk 0:00:04.4]} 62. g7 {[%clk 0:00:03.6]} 62...
Rg3 {[%clk 0:00:04.6]} 63. Kd5 {[%clk 0:00:02.1]} 63... Rxg7 {[%clk 0:00:05.2]}
64. Kc6 {[%clk 0:00:03]} 64... Rg6+ {[%clk 0:00:05.8]} 65. Kb5 {[%clk
0:00:02.7]} 65... Ke3 {[%clk 0:00:06.4]} 66. h4 {[%clk 0:00:02.6]} 66... Kd4
{[%clk 0:00:05.8]} 67. h5 {[%clk 0:00:03.5]} 67... Rh6 {[%clk 0:00:06.1]} 0-1